Cogmind - Beta 16.1 *** ADVENTURER MODE // 2026.02.16 @ 20:31:32 Player: jediknightjlb Result: Destroyed by G-34 Mercenary with Small Laser Performance ------------- Evolutions (1) 500 Regions Visited (2) 400 Robots Destroyed (21) 105 Value Destroyed (600) 600 Prototype IDs (0) 0 Alien Tech Used (0) 0 Bonus (0) 0 TOTAL SCORE: 1605 Bonus ------- None Cogmind --------- Core Integrity 0/400 Matter 300/300 Energy 100/100 System Corruption 2% Temperature Cool (6) Movement Core (700) Ox13 Location -9/Materials Parts ------- > --- POWER (1) -------- (None) > --- PROPULSION (2) --- (None) > --- UTILITY (3) ------ High-capacity Storage Unit > --- WEAPON (3) ------- (None) > --- INVENTORY (20) --- Ion Engine Large Storage Unit Large Storage Unit Small Matter Pod (35) Peak State ------------ > --- POWER ------------ Light Ion Engine > --- PROPULSION ------- Wheel Wheel > --- UTILITY ---------- High-capacity Storage Unit Structural Scanner Improved Targeting Computer > --- WEAPON ----------- Assault Rifle Light Assault Rifle Rocket Launcher > --- INVENTORY -------- Ion Engine Large Storage Unit Large Storage Unit Small Matter Pod Grenade Launcher [Rating: 11] Favorites ----------- Power Light Ion Engine Engine Light Ion Engine Propulsion Wheel Wheel Wheel Utility Improved Targeting Computer Device Structural Scanner Storage High-capacity Storage Unit Processor Improved Targeting Computer Weapon Assault Rifle Ballistic Gun Assault Rifle Launcher Grenade Launcher Build | -11 -10 -9 ------- Run | Yrd Mat Mat Slots Evolved 2 | . . 2 Power . | . . . Propulsion . | . . . Utility 1 | . . 1 Weapon 1 | . . 1 Parts Attached 12 | 5 5 2 Power 1 | 1 . . Engine 1 | 1 . . Core . | . . . Reactor . | . . . Propulsion 2 | 2 . . Treads . | . . . Leg . | . . . Wheel 2 | 2 . . Hover . | . . . Flight . | . . . Utility 5 | . 4 1 Device 1 | . . 1 Storage 3 | . 3 . Processor 1 | . 1 . Hackware . | . . . Protection . | . . . Artifact . | . . . Weapon 4 | 2 1 1 Energy Gun . | . . . Energy Cannon . | . . . Ballistic Gun 2 | 2 . . Ballistic Cannon . | . . . Launcher 2 | . 1 1 Special Weapon . | . . . Impact Weapon . | . . . Slashing Weapon . | . . . Piercing Weapon . | . . . Special Melee Weapon . | . . . Unidentified Prototypes . | . . . Parts Lost 9 | . . 9 Power 1 | . . 1 Propulsion 2 | . . 2 Utility 2 | . . 2 Weapon 4 | . . 4 Highest Loss Streak 6 | . . 6 To Critical Strikes . | . . . Average Backups 3 | . 3 4 Power . | . 1 1 Propulsion . | . . . Utility 1 | . . 2 Weapon . | . 1 . Tool/Special . | . . . Unused Backups 4 | . 1 3 Power 1 | . . 1 Propulsion . | . . . Utility 3 | . 1 2 Weapon . | . . . Tool/Special . | . . . Average Slot Usage (%) 81 | . 93 71 Engine 9 | . 14 5 Wheel 19 | . 28 12 Device 5 | . . 9 Storage 11 | . 12 11 Processor 10 | . 10 9 Ballistic Gun 15 | . 15 15 Launcher 9 | . 11 7 Peak Build Rating 11 | 5 8 11 Average Rating 6 | 3 7 7 On Entrance 4 | . 5 8 Avg Prop Armor Cover (%) . | . . . Naked Turns . | . . . Heaviest Build 51 | 6 48 51 Greatest Support 20 | 20 20 20 Greatest Overweight (x) 15 | . 2 15 Average Overweight (x) 1 | . . 3 Largest Inventory Capacity 20 | 5 20 20 Average Capacity 13 | 5 10 20 Most Carried 7 | 2 7 5 Average Carried 3 | . 3 4 Final Capacity 20 | 5 20 20 Final Carried 6 | 1 6 4 Class Distribution -------------------- 72% | Mutant 27% | Gunner Dominant Class ---------------- Mutant | -10/Materials Gunner | -9/Materials Resources | -11 -10 -9 ----------- Run | Yrd Mat Mat Matter Collected 589 | 262 64 263 Remotely . | . . . Salvage Created 641 | 50 143 448 Parts 34 | 1 9 24 Haulers Intercepted . | . . . Recyclers Shooed 1 | . . 1 Parts Field Recycled . | . . . Retrieved Matter . | . . . Parts Self-Destructed . | . . . Prevented . | . . . Parts Restored . | . . . Kills | -11 -10 -9 ------- Run | Yrd Mat Mat Combat Hostiles Destroyed 16 | 1 6 9 Guns 8 | 1 3 4 AOE 8 | . 3 5 Classes Destroyed 6 | 1 1 4 Builder 2 | . . 2 Recycler 2 | . . 2 Watcher 1 | . . 1 Swarmer 3 | . 3 . Grunt 9 | 1 3 5 Sentry 4 | . . 4 Best Kill Streak 10 | 1 5 10 Combat Bots Only 5 | 1 5 5 Max Kills in Single Turn 4 | 1 3 4 Gunslinging . | . . . Exploded 2 | . 2 2 Melee . | . . . Uniques/NPCs Destroyed . | . . . Combat | -11 -10 -9 -------- Run | Yrd Mat Mat Hostile Shots Fired 166 | 3 27 136 Missed 42 | . 9 33 Hits 124 | 3 18 103 Projectile 124 | 3 18 103 Critical Strikes 2 | . . 2 Damage Taken 1199 | 24 199 976 Core 484 | . 79 405 Absorbed by Shields . | . . . Ignored by Resistances 357 | 6 58 293 Regen/Repaired (Parts) 56 | . 56 . Core Remaining (%) 84 | 100 68 . Volleys Fired 47 | 3 20 24 Largest 3 | 2 2 3 Hottest 73 | 40 50 73 Shots Fired 82 | 6 23 53 Gun 72 | 6 20 46 Cannon . | . . . Launcher 10 | . 3 7 Special . | . . . Kinetic 72 | 6 20 46 Thermal . | . . . Explosive 10 | . 3 7 Electromagnetic . | . . . Robot Hit Streak 33 | 2 10 33 Robot Miss Streak 1 | 1 1 1 Penetration Max . | . . . Secondary Targets . | . . . Shots Hit Robots 69 | 4 18 47 Core Hits 44 | 3 11 30 Critical Kills . | . . . Critical Parts Destroyed 1 | . . 1 Critical Strikes 1 | . . 1 Destroy 1 | . . 1 Melee Attacks . | . . . Impact . | . . . Slashing . | . . . Piercing . | . . . Sneak Attacks . | . . . Combat Hostiles . | . . . Follow-up Attacks . | . . . Damage Inflicted 1674 | 53 471 1150 Guns 664 | 53 219 392 Cannons . | . . . Explosions 1002 | . 246 756 Melee . | . . . Ramming 8 | . 6 2 Kinetic 664 | 53 219 392 Thermal . | . . . Explosive 1002 | . 246 756 Electromagnetic . | . . . Impact . | . . . Slashing . | . . . Piercing . | . . . Highest Corruption 2 | . . 2 Average Corruption 2 | . . 2 Corruption Purged . | . . . Corruption Blocked . | . . . Effects 1 | . . 1 Heat Flow Errors 1 | . . 1 Overload Shots . | . . . Overflow Damage 5 | . . 5 Projectiles . | . . . Explosions 5 | . . 5 Melee . | . . . Knockbacks . | . . . Impact . | . . . Kinetic . | . . . Secondary . | . . . Self-Inflicted Damage 19 | . 19 . Shots 1 | . 1 . Rammed 8 | . 1 7 Targets Rammed 8 | . 1 7 Kicked . | . . . Crushed . | . . . Highest Temperature 169 | 12 7 169 Average Temperature 20 | 7 4 24 Received Heat Transfer 717 | 18 111 588 Siege Activations . | . . . Martial Activations . | . . . Shielding Activations . | . . . Robots Disrupted . | . . . Combat Hostiles . | . . . Robots Corrupted . | . . . Combat Hostiles . | . . . Parts Fried . | . . . Impact Corruptions . | . . . Robots Melted . | . . . Combat Hostiles . | . . . Parts Melted . | . . . Heat Transferred . | . . . Parts Sabotaged . | . . . Parts Stolen . | . . . Parts Stripped . | . . . Power Chain Reactions . | . . . Alert | -11 -10 -9 ------- Run | Yrd Mat Mat Maximum Alert Level . | . . . Low Security (%) 100 | 100 100 100 Level 1 . | . . . Level 2 . | . . . Level 3 . | . . . Level 4 . | . . . Level 5 . | . . . High Security . | . . . Max Security . | . . . Peak Influence 181 | 20 162 181 Initial 33 | . . 33 Average 72 | 3 87 81 Influence Increases 523 | 20 202 301 Destroy 0b10 Robot/C 320 | 20 120 180 Destroy 0b10 Robot/NC 25 | . . 25 Destroy Leader 72 | . 20 52 Successful Hack 20 | . 20 . Disable Machine 18 | . 18 . Destroy Structure 53 | . 9 44 Lose Combat Pursuer 15 | . 15 . Influence Decreases 442 | 20 110 312 Entered New Map 59 | . . 59 Time Decay 293 | 20 110 163 Lost Part 90 | . . 90 Squads Dispatched 2 | . . 2 Investigation . | . . . Extermination . | . . . Reinforcement 2 | . . 2 Assault . | . . . Garrison . | . . . Intercept . | . . . Searches Triggered . | . . . Construction Impeded 1 | . . 1 Haulers Reinforced . | . . . Active Scanning Responses . | . . . Cargo Convoy Interrupts . | . . . Stealth | -11 -10 -9 --------- Run | Yrd Mat Mat Distress Signals 3 | . 1 2 Communications Jammed . | . . . Distress Signals . | . . . Times Spotted 26 | 1 9 16 Peak Tracking Total 8 | 1 4 8 Tactical Retreats 1 | . 1 . Traps | -11 -10 -9 ------- Run | Yrd Mat Mat Traps Triggered 1 | . 1 . Indirectly . | . . . Trap Hack Attempts . | . . . Triggered . | . . . Disarmed . | . . . Reprogrammed . | . . . Reused . | . . . Traps Extracted . | . . . Installed . | . . . Triggered . | . . . Machines | -11 -10 -9 ---------- Run | Yrd Mat Mat Machines Disabled 2 | . 2 . Max in Single Turn 2 | . 2 . Machines Repaired . | . . . Machines Dismantled . | . . . Machines Sabotaged . | . . . Overloaded Fab Kills . | . . . Hacking | -11 -10 -9 --------- Run | Yrd Mat Mat Machines Accessed 4 | . 3 1 Terminals 3 | . 2 1 Fabricators . | . . . Repair Stations 1 | . 1 . Recycling Units . | . . . Scanalyzers . | . . . Garrison Access . | . . . Total Hacks 10 | . 6 4 Successful 6 | . 3 3 Failed 4 | . 3 1 Catastrophic . | . . . Database Lockouts . | . . . Manual . | . . . Terminals 6 | . 2 4 Fabricators . | . . . Repair Stations 4 | . 4 . Recycling Units . | . . . Scanalyzers . | . . . Garrison Access . | . . . Terminal Hacks 3 | . . 3 Record 3 | . . 3 Fabricator Hacks . | . . . Repair Station Hacks 3 | . 3 . Scan Component 2 | . 2 . Repair 1 | . 1 . Recycling Unit Hacks . | . . . Scanalyzer . | . . . Garrison Access Hacks . | . . . Unauthorized Hacks . | . . . Terminals . | . . . Fabricators . | . . . Repair Stations . | . . . Recycling Units . | . . . Scanalyzers . | . . . Garrison Access . | . . . Data Cores Recovered . | . . . Used . | . . . Hacking Detections 1 | . 1 . Full Trace Events . | . . . Feedback Events . | . . . Feedback Blocked . | . . . Robot Schematics Acquired . | . . . Robots Built . | . . . Authchips . | . . . Time . | . . . Total Robot Build Rating . | . . . Part Schematics Acquired . | . . . Parts Built . | . . . Authchips . | . . . Time . | . . . Total Part Build Rating . | . . . Part Studies Acquired . | . . . Parts Repaired 1 | . 1 . Time 13 | . 13 . Parts Recycled . | . . . Recycled Matter . | . . . Retrieved Matter . | . . . Retrieved Components . | . . . Parts Scanalyzed . | . . . Part Schematics Acquired . | . . . Parts Damaged . | . . . Bothacking | -11 -10 -9 ------------ Run | Yrd Mat Mat Used RIF Installer . | . . . Robots Hacked . | . . . Non-combat . | . . . Combat . | . . . Robot Hacks Applied . | . . . Relay Couplers Released . | . . . Fabnet Peak Effective % . | . . . Robots Rewired . | . . . Allies Hacked . | . . . Hacks Repelled . | . . . Allies | -11 -10 -9 -------- Run | Yrd Mat Mat Total Allies . | . . . Largest Group . | . . . Highest-Rated Group . | . . . Highest-Rated Ally . | . . . Total Orders . | . . . Ally Attacks . | . . . Total Damage . | . . . Kills . | . . . Allies Corrupted . | . . . Allies Melted . | . . . Intel | -11 -10 -9 ------- Run | Yrd Mat Mat Active Infowar (turns) 328 | . . 328 Structural 328 | . . 328 Robot Analysis Total . | . . . Derelict Logs Recovered . | . . . Drone Launches . | . . . Drone Recoveries . | . . . Exploration | -11 -10 -9 ------------- Run | Yrd Mat Mat Turns Passed 820 | 124 321 375 Spaces Moved 508 | 78 284 146 Core 34 | 20 . 14 Treads . | . . . Legs . | . . . Wheels 474 | 58 284 132 Hover . | . . . Flight . | . . . Fastest Speed 50 | 50 80 110 Average Speed 108 | 72 86 171 Slowest Speed 800 | 80 110 800 Overloaded Moves . | . . . Propulsion Burnouts . | . . . Robots Hopped . | . . . Potential Cave-ins . | . . . Cave-ins Triggered . | . . . Exploration Rate (%) 23 | 5 46 20 Regions Visited 2 Branch Regions . Pre-discovered Areas . | . . . Known Exits Taken . | . . . Unknown Exits Taken 2 | 1 1 . Scrap Searched . | . . . Spaces Dug . | . . . Terrain Destroyed 53 | . 7 46 Melee . | . . . Projectile . | . . . AOE 53 | . 7 46 Terrain Rammed . | . . . Walls Destroyed . | . . . Machines Disabled . | . . . Actions | -11 -10 -9 --------- Run | Yrd Mat Mat Total 660 | 139 337 184 Wait 63 | 48 13 2 Move 506 | 77 283 146 Hop . | . . . Pick Up 18 | 6 11 1 Fast Attach . | . . . Attach 11 | 5 3 3 Detach . | . . . Swap 4 | . 3 1 Drop 3 | . 3 . Fire 47 | 3 20 24 Melee . | . . . Ram 8 | . 1 7 Kick . | . . . Crush . | . . . Escape Stasis . | . . . Rewire . | . . . Trap . | . . . Miscellaneous . | . . . Route ------- -11/Scrapyard -10/Materials -9/Materials History --------- Turn | Location | Event 2 | -11/Scrapyard | Met Revision 17 60 | -11/Scrapyard | Discovered new exit (range 8) 125 | -11/Scrapyard | Entered Materials 304 | -10/Materials | Repaired Assault Rifle 326 | -10/Materials | Build established: Mutant 404 | -10/Materials | Discovered new exit (range 4) 446 | -10/Materials | Entered another Materials area 446 | -9/Materials | Evolved 2 slots: Utility x1, Weapon x1 718 | -9/Materials | Lost 6 parts (1p2n3w) 771 | -9/Materials | Core integrity fell below 50% 806 | -9/Materials | Core integrity fell below 20% 821 | -9/Materials | Destroyed by G-34 Mercenary with Small Laser Last Messages --------------- 00740_ U-05 Engineer builds a Door. 00743_ U-05 Engineer lays Concrete. 00743_ U-05 Engineer builds a Wall. 00744_ Assault Rifle destroyed. 00744_ R-06 Scavenger collects Aluminum Leg. 00748_ R-06 Scavenger collects Sml. Storage Unit. 00751_ Acquired 123 matter. 00751_ R-06 Scavenger collects Lgt. Treads. 00766_ K-01 Serf collects debris. 00772_ Slammed into G-34 Mercenary. 00775_ Structural Scanner destroyed. 00779_ Slammed into G-34 Mercenary. 00779_ Destabilizing: System corrupted (+2). 00780_ Imp. Targeting Computer destroyed. 00786_ Slammed into G-34 Mercenary. 00799_ System corrupted: Heat flow error (+197). 00807_ Slammed into G-34 Mercenary. 00807_ Destabilizing: Core damaged (-12). 00814_ Slammed into G-34 Mercenary. Map ----- +----------------------------------------------------+ | ?????????????????????????????????????????????????? | | ?????????????????????????????????????????????????? | | ?????????????????????????????????????????????????? | | ?????????????????????????????????????????????????? | | ?????????????????????????????????????????????????? | | ?????????????????????????????????????????????????? | | ?????????????????????????????????????????????????? | | ?????????????????????????????????????????????????? | | ?????????????????????????????????????????????????? | | ?????????????????????????????????????????????????? | | ?????????????????????????????????????????????????? | | ???????????????????????????? #######?????????????? | | ???????????????????????????? #######??###????????? | | ????????????????????????? ?? # ?? ##??# | | ?????????????????????????" ? # ?? ##??#####+# | | ???????????????????????""""? # ? ##??## | | ???????????????????????"""" # ##??## | | ???????????????????????"""" # "" "" ##??## | | ????????????????????????"" # ""S"" ##??## ## | | ????????????????????# # """" ?????## ## | | ????????????## ######+#### ###### ## | | ??????????? ##+####### ##+############## ## | | ??????????? * *!### # ## | | ??????????? % !* + "" # ## | | ??????????? k % =g !! %### """ + ## | | ???????????????/#######ag@!!#### ### """ #%= ## | | ??????????????? ### ###!# ### #* ## | | ?????????????????????### # ## ### """ # ## | | ??????????????????????## ##### ### """ / ## | | ??????????????????????## #####/### """ [ # ## | | ??????????????????????## # ? ## # ## | | ?????????????????????? # # ?????########### ## | | ?????????????????????? # # ?????########## # | | ?????????????????????? + + ???? ########## | | ?????????????????????? # o#??? / | | ?????????????????????? # #????? ########## | | ?????????????????????? # #????????####### # | | ??????????????????????## #?????????????#####+### | | ??????????????????????## ??????????????## | | ??????????????????????##k u??????????????## | | ???????????????????????? ??????????????## | | ?????????????????????????????????????????## | | ?????????????????????????????????????????## | | ?????????????????????????????????????????## """"" | | ?????????????????????????????????????????## """"" | | ?????????????????????????????????????????## """"" | | ?????????????????????????????????????????## | | ?????????????????????????????????????????######### | | ?????????????????????????????????????????######### | | ?????????????????????????????????????????????????? | +----------------------------------------------------+ Best States ------------- Heat Dissipation 28 Energy Generation 10 Energy Capacity 125 Matter Stores 300 Matter Capacity 300 Sight Range 16 Terrain Scan Density 10 Resistance: KI 20 Resistance: TH 20 Resistance: EX 20 Resistance: EM 20 Resistance: I 20 Resistance: S 20 Resistance: P 20 Evasion (%) 50 Targeting Accuracy 6 Offensive Hacking 10 Item Schematics ----------------- None Robot Schematics ------------------ None Fabricated ------------ Nothing Repaired ---------- Assault Rifle | 44% | -10/Materials Studied --------- None Alien Tech Used ----------------- None Achievements -------------- Resistances Are Futile There's More Where That Came From Challenges ------------ None Game ------ Seed MobileSpreadRipper Manual? 0 Play Time 00:13:24 Cumulative 1.8 hours Start 2026.02.16 @ 20:18:45 End 2026.02.16 @ 20:31:32 Sessions 1 Manual Loads 0 Difficulty Adventurer Special Mode None Game No. 3 Rogue 0 Adventurer 3 Explorer 0 Win Type - Total 0 Types 0/0/0/0/0/0/0/0/0/0 Lore% 0 Gallery% 5 Achievement% 6 Wizard Run 0 Options --------- Layout 1 ASCII 0 Keyboard 0 Movement Arrows Keybinds 0 Fullscreen 1 Font 24/Smallcaps Map View 50x35 Zoom Use 0% Tactical HUD 1 Map Filters NONE Filters NONE Steam 1 RUN: 84321cf4-e2c3-48fe-a247-bc8c183c644a